Cogmind - Beta 14 @@@ ROGUE MODE // 2024.08.07 @ 21:35:15 Player: CONM Result: Destroyed by D-53 Grenadier with Mini Grenade Launcher Performance ------------- Evolutions (0) 0 Regions Visited (2) 400 Robots Destroyed (13) 65 Value Destroyed (193) 193 Prototype IDs (0) 0 Alien Tech Used (0) 0 Bonus (0) 0 TOTAL SCORE: 658 Bonus ------- None Cogmind --------- Core Integrity 0/250 Matter 195/300 Energy 76/100 System Corruption 0% Temperature Cool (0) Movement Core (700) Ox13 Location -10/Mines Parts ------- > --- POWER (1) -------- (None) > --- PROPULSION (2) --- (None) > --- UTILITY (2) ------ High-capacity Storage Unit > --- WEAPON (2) ------- (None) > --- INVENTORY (20) --- Ion Engine Light Ion Engine Light Treads Light Treads Aluminum Leg Compact Wheel Small Storage Unit Medium Battery (150) Beam Cannon Light Assault Rifle Grenade Launcher Peak State ------------ > --- POWER ------------ Light Ion Engine > --- PROPULSION ------- Compact Wheel Compact Wheel > --- UTILITY ---------- High-capacity Storage Unit Seismic Detector > --- WEAPON ----------- Assault Rifle Light Assault Rifle > --- INVENTORY -------- Ion Engine Light Ion Engine Light Treads Light Treads Aluminum Leg Small Storage Unit Medium Battery Beam Cannon Grenade Launcher Grenade Launcher [Rating: 8] Favorites ----------- Power Light Ion Engine Engine Light Ion Engine Propulsion Compact Wheel Treads Light Treads Wheel Compact Wheel Utility High-capacity Storage Unit Device Seismic Detector Storage High-capacity Storage Unit Weapon Assault Rifle Ballistic Gun Assault Rifle Launcher Grenade Launcher Build | -11 -10 -10 ------- Run | Yrd Mat Min Slots Evolved . | . . . Power . | . . . Propulsion . | . . . Utility . | . . . Weapon . | . . . Parts Attached 16 | 7 1 8 Power 3 | 1 . 2 Engine 3 | 1 . 2 Core . | . . . Reactor . | . . . Propulsion 7 | 2 . 5 Treads 3 | . . 3 Leg . | . . . Wheel 4 | 2 . 2 Hover . | . . . Flight . | . . . Utility 3 | 2 1 . Device 1 | 1 . . Storage 2 | 1 1 . Processor . | . . . Hackware . | . . . Protection . | . . . Artifact . | . . . Weapon 3 | 2 . 1 Energy Gun . | . . . Energy Cannon . | . . . Ballistic Gun 2 | 2 . . Ballistic Cannon . | . . . Launcher 1 | . . 1 Special Weapon . | . . . Impact Weapon . | . . . Slashing Weapon . | . . . Piercing Weapon . | . . . Special Melee Weapon . | . . . Unidentified Prototypes . | . . . Parts Lost 9 | . . 9 Power 2 | . . 2 Propulsion 4 | . . 4 Utility 1 | . . 1 Weapon 2 | . . 2 Highest Loss Streak 5 | . . 5 To Critical Strikes . | . . . Average Slot Usage (%) 85 | . 100 79 Engine 11 | . 14 9 Wheel 22 | . 28 19 Device 8 | . 14 6 Storage 14 | . 14 14 Ballistic Gun 22 | . 28 19 Launcher 5 | . . 7 Peak Build Rating 8 | 7 7 8 Average Rating 6 | 5 7 6 On Entrance 4 | . 7 7 Naked Turns . | . . . Heaviest Build 50 | 12 47 50 Greatest Support 40 | 32 32 40 Greatest Overweight (x) 3 | 1 1 3 Average Overweight (x) 1 | . . 2 Largest Inventory Capacity 20 | 8 20 20 Average Capacity 17 | 7 15 20 Most Carried 13 | 5 9 13 Average Carried 10 | 3 8 12 Final Capacity 20 | 8 20 20 Final Carried 11 | 4 9 11 Class Distribution -------------------- 100% | Mutant Dominant Class ---------------- Mutant | -10/Materials Mutant | -10/Mines Resources | -11 -10 -10 ----------- Run | Yrd Mat Min Matter Collected 410 | 265 . 145 Remotely . | . . . Salvage Created 307 | 20 . 287 Parts 21 | 2 . 19 Haulers Intercepted . | . . . Recyclers Shooed 1 | . . 1 Parts Field Recycled . | . . . Retrieved Matter . | . . . Parts Self-Destructed . | . . . Prevented . | . . . Kills | -11 -10 -10 ------- Run | Yrd Mat Min Combat Hostiles Destroyed 12 | . . 12 Guns 7 | . . 7 AOE 5 | . . 5 Classes Destroyed 5 | 1 . 4 Tunneler 1 | 1 . . Recycler 1 | . . 1 Swarmer 9 | . . 9 Sentry 2 | . . 2 Assembled 1 | . . 1 Best Kill Streak 3 | 1 . 3 Combat Bots Only 3 | . . 3 Max Kills in Single Turn 2 | 1 . 2 Gunslinging . | . . . Exploded 2 | . . 2 Melee . | . . . Uniques/NPCs Destroyed . | . . . Combat | -11 -10 -10 -------- Run | Yrd Mat Min Hostile Shots Fired 67 | . 3 64 Missed 16 | . . 16 Damage Taken 1029 | . 24 1005 Core 259 | . 6 253 Absorbed by Shields . | . . . Core Remaining (%) 100 | 100 . . Volleys Fired 32 | 7 . 25 Largest 2 | 2 . 2 Hottest 50 | 40 . 50 Shots Fired 64 | 14 . 50 Gun 56 | 14 . 42 Cannon . | . . . Launcher 8 | . . 8 Special . | . . . Kinetic 56 | 14 . 42 Thermal . | . . . Explosive 8 | . . 8 Electromagnetic . | . . . Robot Hit Streak 7 | 5 . 7 Robot Miss Streak 2 | 2 . 1 Penetration Max . | . . . Secondary Targets 1 | . . 1 Max Gunslinging Chain 1 | . . 1 Shots Hit Robots 38 | 9 . 29 Core Hits 19 | 2 . 17 Critical Kills . | . . . Critical Parts Destroyed . | . . . Critical Strikes . | . . . Melee Attacks . | . . . Impact . | . . . Slashing . | . . . Piercing . | . . . Sneak Attacks . | . . . Combat Hostiles . | . . . Follow-up Attacks . | . . . Damage Inflicted 741 | 93 . 648 Guns 379 | 93 . 286 Cannons . | . . . Explosions 362 | . . 362 Melee . | . . . Ramming . | . . . Kinetic 379 | 93 . 286 Thermal . | . . . Explosive 362 | . . 362 Electromagnetic . | . . . Impact . | . . . Slashing . | . . . Piercing . | . . . Highest Corruption . | . . . Average Corruption . | . . . Corruption Purged . | . . . Corruption Blocked . | . . . Overload Shots . | . . . Overflow Damage 21 | . . 21 Projectiles . | . . . Explosions 21 | . . 21 Melee . | . . . Knockbacks . | . . . Impact . | . . . Kinetic . | . . . Secondary . | . . . Self-Inflicted Damage 58 | . . 58 Shots 3 | . . 3 Rammed . | . . . Targets Rammed . | . . . Kicked . | . . . Crushed . | . . . Highest Temperature 4 | . . 4 Average Temperature 4 | . . 4 Received Heat Transfer 54 | . . 54 Siege Activations . | . . . Robots Corrupted . | . . . Combat Hostiles . | . . . Parts Fried . | . . . Impact Corruptions . | . . . Robots Melted . | . . . Combat Hostiles . | . . . Parts Melted . | . . . Heat Transferred . | . . . Parts Sabotaged . | . . . Parts Stolen . | . . . Parts Stripped . | . . . Power Chain Reactions . | . . . Alert | -11 -10 -10 ------- Run | Yrd Mat Min Peak Influence 284 | 5 53 284 Initial 20 | . 3 20 Average 85 | . 18 128 Maximum Alert Level 1 | . . 1 Low Security (%) 89 | 100 100 83 Level 1 10 | . . 16 Level 2 . | . . . Level 3 . | . . . Level 4 . | . . . Level 5 . | . . . High Security . | . . . Max Security . | . . . Squads Dispatched . | . . . Investigation . | . . . Extermination . | . . . Reinforcement . | . . . Assault . | . . . Garrison . | . . . Intercept . | . . . Searches Triggered . | . . . Construction Impeded . | . . . Haulers Reinforced . | . . . Active Scanning Responses . | . . . Cargo Convoy Interrupts . | . . . Stealth | -11 -10 -10 --------- Run | Yrd Mat Min Distress Signals 1 | . 1 . Communications Jammed . | . . . Distress Signals . | . . . Times Spotted 21 | . 7 14 Peak Tracking Total 5 | . 5 3 Tactical Retreats . | . . . Traps | -11 -10 -10 ------- Run | Yrd Mat Min Traps Triggered . | . . . Indirectly . | . . . Trap Hack Attempts . | . . . Triggered . | . . . Disarmed . | . . . Reprogrammed . | . . . Reused . | . . . Traps Extracted . | . . . Installed . | . . . Triggered . | . . . Machines | -11 -10 -10 ---------- Run | Yrd Mat Min Machines Disabled . | . . . Max in Single Turn . | . . . Machines Repaired . | . . . Machines Dismantled . | . . . Machines Sabotaged . | . . . Overloaded Fab Kills . | . . . Hacking | -11 -10 -10 --------- Run | Yrd Mat Min Machines Accessed 3 | . 3 . Terminals 2 | . 2 . Fabricators . | . . . Repair Stations . | . . . Recycling Units 1 | . 1 . Scanalyzers . | . . . Garrison Access . | . . . Total Hacks 6 | . 6 . Successful 4 | . 4 . Failed 2 | . 2 . Catastrophic . | . . . Database Lockouts . | . . . Manual . | . . . Terminals 4 | . 4 . Fabricators . | . . . Repair Stations . | . . . Recycling Units 2 | . 2 . Scanalyzers . | . . . Garrison Access . | . . . Terminal Hacks 3 | . 3 . Locate Traps 1 | . 1 . Hauler Manifests 1 | . 1 . Zone Layout 1 | . 1 . Fabricator Hacks . | . . . Repair Station Hacks . | . . . Recycling Unit Hacks 1 | . 1 . Report Inventory 1 | . 1 . Scanalyzer . | . . . Garrison Access Hacks . | . . . Unauthorized Hacks . | . . . Terminals . | . . . Fabricators . | . . . Repair Stations . | . . . Recycling Units . | . . . Scanalyzers . | . . . Garrison Access . | . . . Data Cores Recovered . | . . . Used . | . . . Hacking Detections 1 | . 1 . Full Trace Events . | . . . Feedback Events . | . . . Feedback Blocked . | . . . Robot Schematics Acquired . | . . . Robots Built . | . . . Authchips . | . . . Time . | . . . Total Robot Build Rating . | . . . Part Schematics Acquired . | . . . Parts Built . | . . . Authchips . | . . . Time . | . . . Total Part Build Rating . | . . . Parts Repaired . | . . . Time . | . . . Parts Recycled . | . . . Recycled Matter . | . . . Retrieved Matter . | . . . Retrieved Components . | . . . Parts Scanalyzed . | . . . Part Schematics Acquired . | . . . Parts Damaged . | . . . Bothacking | -11 -10 -10 ------------ Run | Yrd Mat Min Used RIF Installer . | . . . Robots Hacked . | . . . Non-combat . | . . . Combat . | . . . Robot Hacks Applied . | . . . Relay Couplers Released . | . . . Fabnet Peak Effective % . | . . . Robots Rewired . | . . . Allies Hacked . | . . . Hacks Repelled . | . . . Allies | -11 -10 -10 -------- Run | Yrd Mat Min Total Allies . | . . . Largest Group . | . . . Highest-Rated Group . | . . . Highest-Rated Ally . | . . . Total Orders . | . . . Ally Attacks . | . . . Total Damage . | . . . Kills . | . . . Allies Corrupted . | . . . Allies Melted . | . . . Intel | -11 -10 -10 ------- Run | Yrd Mat Min Robot Analysis Total . | . . . Derelict Logs Recovered 1 | . . 1 Drone Launches . | . . . Drone Recoveries . | . . . Exploration | -11 -10 -10 ------------- Run | Yrd Mat Min Turns Passed 1031 | 113 269 649 Spaces Moved 700 | 80 242 378 Core 4 | 4 . . Treads 4 | . . 4 Legs . | . . . Wheels 692 | 76 242 374 Hover . | . . . Flight . | . . . Fastest Speed 50 | 50 100 105 Average Speed 119 | 98 108 130 Slowest Speed 240 | 100 115 240 Overloaded Moves . | . . . Propulsion Burnouts . | . . . Robots Hopped . | . . . Cave-ins Triggered . | . . . Exploration Rate (%) 38 | 4 48 64 Regions Visited 2 Branch Regions 1 Pre-discovered Areas 1 | . . 1 Known Exits Taken . | . . . Unknown Exits Taken 2 | 1 1 . Scrap Searched 1 | . . 1 Spaces Dug . | . . . Terrain Destroyed 68 | . . 68 Melee . | . . . Projectile . | . . . AOE 68 | . . 68 Terrain Rammed . | . . . Walls Destroyed . | . . . Machines Disabled . | . . . Actions | -11 -10 -10 --------- Run | Yrd Mat Min Total 830 | 98 248 484 Wait 70 | . . 70 Move 698 | 79 241 378 Hop . | . . . Pick Up 12 | 5 5 2 Fast Attach 8 | 6 . 2 Attach 3 | 1 . 2 Detach . | . . . Swap 5 | . 1 4 Drop 2 | . 1 1 Fire 32 | 7 . 25 Melee . | . . . Ram . | . . . Kick . | . . . Crush . | . . . Escape Stasis . | . . . Rewire . | . . . Trap . | . . . Miscellaneous . | . . . Route ------- -11/Scrapyard -10/Materials (discovered 2 exits: [*Mat] / [*Min]) -10/Mines (discovered 3 exits: [*Mat x2] / [*Sub]) History --------- Turn | Location | Event 2 | -11/Scrapyard | Met Revision 17 12 | -11/Scrapyard | Discovered new exit (range 15) 114 | -11/Scrapyard | Entered Materials 212 | -10/Materials | Discovered new exit (range 12) 312 | -10/Materials | Discovered new exit (range 9) 313 | -10/Materials | Build established: Mutant 383 | -10/Materials | Entered Mines 595 | -10/Mines | Discovered new exit (range 5) 698 | -10/Mines | Core integrity fell below 50% 753 | -10/Mines | Discovered new exit (range 5) 899 | -10/Mines | Discovered new exit (range 5) 962 | -10/Mines | Learned location of Zion (-6) 990 | -10/Mines | Assembled infested the area 1031 | -10/Mines | Core integrity fell below 20% 1032 | -10/Mines | Destroyed by D-53 Grenadier with Mini Grenade Launcher Last Messages --------------- 00816_ U-05 Engineer builds a Wall. 00820_ K-01 Serf collects debris. 00894_ T-07 Excavator is excavating. 00899_ EXIT=FOUND 00904_ T-07 Excavator is excavating. 00962_ Acquired derelict log, extracted data. World map updated: -6/Zion. 00990_ ALERT: Infestation in the mines, dispatching Demolisher response squad. 01010_ as-67815 destroyed. 01018_ C-30 ARC bursts open, deploying its payload. 01018_ D-53 Grenadier unfolds itself. 01018_ Destroyed Mining Laser. 01019_ K-01 Serf destroyed. 01022_ Assault Rifle destroyed. 01022_ Grenade Launcher destroyed. 01022_ Ion Engine destroyed. 01024_ Dropped Com. Wheel. 01029_ The unstable cave ceiling collapses. 01030_ Lgt. Treads destroyed. Map ----- +----------------------------------------------------+ | ######## ######### ! ## ##?## #????# ## | | ???????# ####### ##?# #????# ## | | ???????# #### #####????# ### #????# # | | ???????# #??# #????????# ### ##???## | | ????#### #?## #????????## #?###????## | | ##### ### #?????????## ##????????# | | ## ## ## #??????????# ##????????## | | "" ##??# #####??????# ####?????????# | | "" #???#### #??????# #????????????# | | "" #??????# #??????# ########?????## | | #??????# #### #??????# #??????# | | = #?????# #??# #??????# #??????# | | #?????# #??# ######?######## #####??## | | #????# ##??# #????????# ## ##??# | | %= #?# ##???# #### #???????## #??# ### | | "" ##### #????# #??# #???????# #### #?? | | "" #??# ?????# #??# #??????## ### #?? | | "" #?? #?????# #??# #?????## #?# ####?? | | #? #??????# #??# #????## #?# #????? | | #### ##??????## #??# #????# < ### #????? | | ???? #???????### #??# #?##?# ## #????? | | ???????????????# % ## ## #### #????? | | ???????????????# # # ###### ####????? | | ???????????????# d ##??## ##???????? | | ????????????????# d #???## ##????????? | | ????????????????# @ ##???####?????????? | | ?????????????????#### ##???????????????? | | ????????????????###### #???????????????? | | ????????????????# #???????????????? | | ????????????????# #???????????????? | | ????????????????# #### #???????????????? | | ????????????????#????## ##???????????????? | | ??????????????????????## ##????????????????? | | ???????????????????????# ##?????????????????? | | ???????????????????????## #?????????????????? | | ????????????????????????## #?????????????????? | | ?????????????????????????## ##?????????????????? | | ??????????????????????????## #??????????????????? | | ???????????????????????????# ??????????????????? | | ??????????????????????????? ??????????????????? | | ??????????????????????????? ?????????????????? | | ??????????????????????????? ?????????????????? | | ?????????????????????????? " ?????????????????? | | ?????????????????????????? ?????????????????? | | ?????????????????????????? ?????????????????? | | ?????????????????????????? ??????????????????? | | ????????????????????????? ??????????????????? | | ????????????????????????? ??????????????????? | | ???????????????????????????# ??????????????????? | | ?????????????????????????????????????????????????? | +----------------------------------------------------+ Best States ------------- Heat Dissipation 25 Energy Generation 10 Energy Capacity 250 Matter Stores 300 Matter Capacity 300 Sight Range 16 Terrain Scan Density 10 Evasion (%) 40 Recoil Reduction 2 Item Schematics ----------------- None Robot Schematics ------------------ None Fabricated ------------ Nothing Alien Tech Used ----------------- None Achievements -------------- None Challenges ------------ None Game ------ Seed SurgeHeatImmobilizer Manual? 0 Play Time 00:09:21 Cumulative 54.1 hours Start 2024.08.07 @ 21:24:24 End 2024.08.07 @ 21:35:15 Sessions 1 Manual Loads 0 Difficulty Rogue Special Mode None Game No. 79 Rogue 79 Adventurer 0 Explorer 0 Win Type - Total 0 Types 0/0/0/0/0/0/0/0/0 Lore% 18 Gallery% 32 Achievement% 37 Wizard Run 0 Options --------- Layout 0 ASCII 0 Keyboard 0 Movement Arrows Keybinds 0 Fullscreen 2 Font 18/SmallcapsGlow Map View 76x50 Zoom Use 0% Tactical HUD 1 Map Filters NONE Filters NONE Steam 1 RUN: 26f61ed1-20ea-4380-9682-5de17ed96c04